{"text_format":"1","workbook":"xlsx","n_sheets":1,"sheets":["Отпуск ЭЭ сет организациями"],"not_rendered":{"charts":0,"images":0,"macros":1,"external_links":1,"defined_names":45,"comments":0,"pivot_tables":0},"unopened":[],"bounds":{"document_bytes":16777216,"sheet_cells":100000,"rows_first":2000,"rows_last":500,"rows_between":2000,"halvings":0,"cell_chars":16384,"cell_head_chars":4096},"cells_cut":0,"cells_raw":0,"read":"whole","date_system":"1900"}

{"sheet":"Отпуск ЭЭ сет организациями","index":0,"n_rows":152,"n_cols":17,"rows_kept":152,"cut":false,"hidden":false,"merged":[[148,5,148,6],[148,8,148,10],[148,12,148,13],[150,5,150,7],[151,5,151,7],[13,3,13,10],[50,3,50,10],[87,3,87,10],[91,3,91,10],[124,3,124,10],[147,5,147,6],[147,8,147,10],[7,3,7,4],[10,3,11,3],[10,4,11,4],[10,5,11,5],[10,6,11,6],[10,7,10,10]]}
[]
[]
[]
[]
[null,null,null,null,null,"L1","L1.1","L1.2","L2","L2.1","L2.2","L3","L3.1","L3.1","L3.2","L4.1","L4.2"]
[]
[]
[null,null,null,"Сведения об отпуске (передаче) электроэнергии распределительными сетевыми организациями отдельным категориям потребителей"]
[null,null,null,{"$f":"IF(org=\"\",\"Не определено\",org)","v":"ООО \"Энергонефть Томск\""}]
[null,null,null,null,null,null,null,null,null,null,"Коды по ОКЕИ: 1000 киловатт-часов – 246, мегаватт – 215, тысяча рублей – 384"]
[null,null,null,"№ п/п","Наименование показателя","Код строки","Всего","В том числе по уровню напряжения"]
[null,null,null,null,null,null,null,"ВН","СН1","СН2","НН"]
[null,null,null,0,1,2,3,4,5,6,7]
[null,null,null,"I. Электроэнергия (тыс. кВт ч)"]
[null,null,null,"1","Поступление в сеть из других организаций:",10,{"$f":"SUM(H15:K15)","v":26025.328000000001},{"$f":"H16+H17+H20+H23","v":26025.328000000001},{"$f":"I16+I17+I20+I23","v":0},{"$f":"J16+J17+J20+J23","v":0},{"$f":"K16+K17+K20+K23","v":0},null,null,null,null,10]
[null,null,null,"1.1","из сетей ПАО \"ФСК ЕЭС\"",20,{"$f":"SUM(H16:K16)","v":0},null,null,null,null,null,null,null,null,20]
[null,null,null,"1.2","от генерирующих компаний и блок-станций:",30,0,{"$f":"SUM(H18:H19)","v":0},{"$f":"SUM(I18:I19)","v":0},{"$f":"SUM(J18:J19)","v":0},{"$f":"SUM(K18:K19)","v":0},null,null,null,null,30]
[null,null,null,"1.2.0",null,"30"]
[null,null,null,null,"Добавить организацию"]
[null,null,null,"1.3","от несетевых организаций:","230",0,{"$f":"SUM(H21:H22)","v":0},{"$f":"SUM(I21:I22)","v":0},{"$f":"SUM(J21:J22)","v":0},{"$f":"SUM(K21:K22)","v":0}]
[null,null,null,"1.3.0",null,"230"]
[null,null,null,null,"Добавить организацию"]
[null,null,null,"1.4","от смежных сетевых организаций:","430",26025.328000000001,{"$f":"SUM(H24:H26)","v":26025.328000000001},{"$f":"SUM(I24:I26)","v":0},{"$f":"SUM(J24:J26)","v":0},{"$f":"SUM(K24:K26)","v":0},null,null,null,null,40]
[null,null,null,"1.4.0",null,"430"]
[null,null,"О","1.4.1","АО \"Россети Тюмень\"",431,{"$f":"SUM(H25:K25)","v":26025.328000000001},26025.328000000001,null,null,null,null,"8602060185","997450001","26522781"]
[null,null,null,null,"Добавить организацию"]
[null,null,null,"2","Поступление в сеть из других уровней напряжения (трансформация)","630",39688.505999999994,{"$f":"H29+H30+H31","v":0},{"$f":"I28+I30+I31","v":13923.548999999997},{"$f":"J28+J29+J31","v":25764.956999999999},{"$f":"K28+K29+K30","v":0},null,null,null,null,50]
[null,null,null,"2.1","ВН","640",26025.328000000001,null,13923.548999999997,12101.779000000002,null,null,null,null,null,60]
[null,null,null,"2.2","СН1","650",13663.177999999996,null,null,13663.177999999996,null,null,null,null,null,70]
[null,null,null,"2.3","СН2","660",0,null,null,null,null,null,null,null,null,80]
[null,null,null,"2.4","НН ","670",0,null,null,null,null,null,null,null,null,90]
[null,null,null,"3","Генерация на установках организации (совмещение деятельности)","680",0]
[null,null,null,"4","Отпуск из сети:","690",24895.826000000005,{"$f":"H34+H36+H39+H42","v":0},{"$f":"I34+I36+I39+I42","v":0},{"$f":"J34+J36+J39+J42","v":24895.826000000005},{"$f":"K34+K36+K39+K42","v":0},null,null,null,null,100]
[null,null,null,"4.1","прямым прочим потребителям по договорам оказания услуг по передаче электрической энергии, в том числе:","700",0]
[null,null,null,"4.1.1","потребителям, опосредованно подключенным к шинам генераторов","710",0]
[null,null,null,"4.2","потребителям ГП, ЭСО, ЭСК, в том числе:","720",24895.826000000005,null,null,24895.826000000005]
[null,null,null,"4.2.1","прочим потребителям, в том числе:","730",0]
[null,null,null,"4.2.1.1","потребителям, опосредованно подключенным к шинам генераторов","740",0]
[null,null,null,"4.3","смежным сетевым организациям:","750",0,{"$f":"SUM(H40:H41)","v":0},{"$f":"SUM(I40:I41)","v":0},{"$f":"SUM(J40:J41)","v":0},{"$f":"SUM(K40:K41)","v":0}]
[null,null,null,"4.3.0",null,"750"]
[null,null,null,null,"Добавить организацию"]
[null,null,null,"4.4","населению и приравненным к нему категориям","950",0,null,null,null,null,null,null,null,null,120]
[null,null,null,"5","Отпуск в сеть других уровней напряжения","960",39688.505999999994,26025.328000000001,13663.177999999996,null,null,null,null,null,null,150]
[null,null,null,"6","Хозяйственные нужды организации","970",0,null,null,null,null,null,null,null,null,160]
[null,null,null,"7","Собственное потребление (совмещение деятельности)","980",0,null,null,null,null,null,null,null,null,180]
[null,null,null,"8","Общий объем потерь (фактические объемы), в том числе:","990",1129.502,null,260.37099999999998,869.13100000000009,null,null,null,null,null,190]
[null,null,null,"8.1","относимые на собственное потребление (фактическое значение)","1000",0,null,null,null,null,null,null,null,null,200]
[null,null,null,"9","Нормативные потери (объемы потерь учтенные в сводном прогнозном балансе)","1010",0]
[null,null,null,"10","Объем превышения фактических объемов потерь электрической энергии над объемами потерь, учтенными в сводном прогнозном балансе за соответствующий расчетный период","1020",1129.502,{"$f":"H46-H48","v":0},{"$f":"I46-I48","v":260.37099999999998},{"$f":"J46-J48","v":869.13100000000009},{"$f":"K46-K48","v":0}]
[null,null,null,"11","Небаланс","1030",0,{"$f":"(H15+H27+H32)-(H33+H43+H44+H45+H46)","v":0},{"$f":"(I15+I27+I32)-(I33+I43+I44+I45+I46)","v":0},{"$f":"(J15+J27+J32)-(J33+J43+J44+J45+J46)","v":0},{"$f":"(K15+K27+K32)-(K33+K43+K44+K45+K46)","v":0},null,null,null,null,210]
[null,null,null,"II. Мощность (МВт)"]
[null,null,null,"12","Поступление в сеть из других организаций:","1040",3.1149166666666672,{"$f":"H53+H54+H57+H60","v":3.1149166666666672},{"$f":"I53+I54+I57+I60","v":0},{"$f":"J53+J54+J57+J60","v":0},{"$f":"K53+K54+K57+K60","v":0},null,null,null,null,300]
[null,null,null,"12.1","из сетей ПАО \"ФСК ЕЭС\"","1050",0,null,null,null,null,null,null,null,null,310]
[null,null,null,"12.2","от генерирующих компаний и блок-станций:","1060",0,{"$f":"SUM(H55:H56)","v":0},{"$f":"SUM(I55:I56)","v":0},{"$f":"SUM(J55:J56)","v":0},{"$f":"SUM(K55:K56)","v":0},null,null,null,null,320]
[null,null,null,"12.2.0",null,"1060"]
[null,null,null,null,"Добавить организацию"]
[null,null,null,"12.3","от несетевых организаций:","1260",0,{"$f":"SUM(H58:H59)","v":0},{"$f":"SUM(I58:I59)","v":0},{"$f":"SUM(J58:J59)","v":0},{"$f":"SUM(K58:K59)","v":0}]
[null,null,null,"12.3.0",null,"1260"]
[null,null,null,null,"Добавить организацию"]
[null,null,null,"12.4","от смежных сетевых организаций:","1460",3.1149166666666672,{"$f":"SUM(H61:H63)","v":3.1149166666666672},{"$f":"SUM(I61:I63)","v":0},{"$f":"SUM(J61:J63)","v":0},{"$f":"SUM(K61:K63)","v":0},null,null,null,null,330]
[null,null,null,"12.4.0",null,"1460"]
[null,null,"О","12.4.1","АО \"Россети Тюмень\"",1461,{"$f":"SUM(H62:K62)","v":3.1149166666666672},3.1149166666666672,null,null,null,null,"8602060185","997450001","26522781"]
[null,null,null,null,"Добавить организацию"]
[null,null,null,"13","Поступление в сеть из других уровней напряжения (трансформация)","1660",4.7501749864726142,{"$f":"H66+H67+H68","v":0},{"$f":"I65+I67+I68","v":1.6664166666666667},{"$f":"J65+J66+J68","v":3.0837583198059475},{"$f":"K65+K66+K67","v":0},null,null,null,null,340]
[null,null,null,"13.1","ВН","1670",3.1149166666666668,null,1.6664166666666667,1.4485000000000001,null,null,null,null,null,350]
[null,null,null,"13.2","СН1","1680",1.6352583198059472,null,null,1.6352583198059472,null,null,null,null,null,360]
[null,null,null,"13.3","СН2","1690",0,null,null,null,null,null,null,null,null,370]
[null,null,null,"13.4","НН ","1700",0,null,null,null,null,null,null,null,null,380]
[null,null,null,"14","Генерация на установках организации (совмещение деятельности)","1710",0]
[null,null,null,"15","Отпуск из сети:","1720",2.9797500000000006,{"$f":"H71+H73+H76+H79","v":0},{"$f":"I71+I73+I76+I79","v":0},{"$f":"J71+J73+J76+J79","v":2.9797500000000006},{"$f":"K71+K73+K76+K79","v":0},null,null,null,null,390]
[null,null,null,"15.1","прямым прочим потребителям по договорам оказания услуг по передаче электрической энергии, в том числе:","1730",0]
[null,null,null,"15.1.1","потребителям, опосредованно подключенным к шинам генераторов","1740",0]
[null,null,null,"15.2","потребителям ГП, ЭСО, ЭСК, в том числе:","1750",2.9797500000000006,null,null,2.9797500000000006]
[null,null,null,"15.2.1","прочим потребителям, в том числе:","1760",0]
[null,null,null,"15.2.1.1","потребителям, опосредованно подключенным к шинам генераторов","1770",0]
[null,null,null,"15.3","смежным сетевым организациям:","1780",0,{"$f":"SUM(H77:H78)","v":0},{"$f":"SUM(I77:I78)","v":0},{"$f":"SUM(J77:J78)","v":0},{"$f":"SUM(K77:K78)","v":0}]
[null,null,null,"15.3.0",null,"1780"]
[null,null,null,null,"Добавить организацию"]
[null,null,null,"15.4","населению и приравненным к нему категориям","1980",0,null,null,null,null,null,null,null,null,410]
[null,null,null,"16","Отпуск в сеть других уровней напряжения","1990",4.7501749864726142,3.1149166666666672,1.6352583198059472,null,null,null,null,null,null,440]
[null,null,null,"17","Хозяйственные нужды организации","2000",0,null,null,null,null,null,null,null,null,450]
[null,null,null,"18","Собственное потребление (совмещение деятельности)","2010",0,null,null,null,null,null,null,null,null,470]
[null,null,null,"19","Общий объем потерь (фактические объемы), в том числе:","2020",0.13516666666666668,null,3.1158346860719489E-2,0.1040083198059472,null,null,null,null,null,480]
[null,null,null,"19.1","относимые на собственное потребление","2030",0,null,null,null,null,null,null,null,null,490]
[null,null,null,"20","Нормативные потери (объемы потерь учтенные в сводном прогнозном балансе)","2040",0]
[null,null,null,"21","Объем превышения фактических объемов потерь электрической энергии над объемами потерь, учтенными в сводном прогнозном балансе за соответствующий расчетный период","2050",0.13516666666666668,{"$f":"H83-H85","v":0},{"$f":"I83-I85","v":3.1158346860719489E-2},{"$f":"J83-J85","v":0.1040083198059472},{"$f":"K83-K85","v":0}]
[null,null,null,"22","Небаланс","2060",0,{"$f":"(H52+H64+H69)-(H70+H80+H81+H82+H83)","v":0},{"$f":"(I52+I64+I69)-(I70+I80+I81+I82+I83)","v":0},{"$f":"(J52+J64+J69)-(J70+J80+J81+J82+J83)","v":0},{"$f":"(K52+K64+K69)-(K70+K80+K81+K82+K83)","v":0},null,null,null,null,500]
[null,null,null,"III. Мощность (МВт)"]
[null,null,null,"23","Заявленная мощность","2070",3.1149166666666672,3.1149166666666672,null,null,null,null,null,null,null,600]
[null,null,null,"24","Максимальная мощность","2080",14,14,null,null,null,null,null,null,null,610]
[null,null,null,"25","Резервируемая мощность","2090",10.885083333333332,10.885083333333332,null,null,null,null,null,null,null,620]
[null,null,null,"IV. Фактический полезный отпуск конечным потребителям (тыс. кВт ч; МВт)"]
[null,null,null,"26","Полезный отпуск конечным потребителям (тыс. кВт ч):","2100",0,{"$f":"SUM(H94:H95)","v":0},{"$f":"SUM(I94:I95)","v":0},{"$f":"SUM(J94:J95)","v":0},{"$f":"SUM(K94:K95)","v":0},null,null,null,null,700]
[null,null,null,"26.1","по одноставочному тарифу","2110",0,null,null,null,null,null,null,null,null,710]
[null,null,null,"26.2","по двухставочному тарифу:","2120",0,{"$f":"H98","v":0},{"$f":"I98","v":0},{"$f":"J98","v":0},{"$f":"K98","v":0},null,null,null,null,720]
[null,null,null,"26.2.1","мощность (МВт), в том числе:","2130",0,null,null,null,null,null,null,null,null,730]
[null,null,null,"26.2.1.1","опосредованно подключенным к шинам генераторов (МВт)","2140",0]
[null,null,null,"26.2.2","компенсация потерь (тыс. кВт ч)","2150",0,null,null,null,null,null,null,null,null,740]
[null,null,null,"27","Полезный отпуск потребителям ГП, ЭСО (тыс. кВт ч):","2160",24895.826000000005,{"$f":"H100+H116","v":0},{"$f":"I100+I116","v":0},{"$f":"J100+J116","v":24895.826000000005},{"$f":"K100+K116","v":0},null,null,null,null,750]
[null,null,null,"27.1","по одноставочному тарифу:","2170",24895.826000000005,{"$f":"H101+H102","v":0},{"$f":"I101+I102","v":0},{"$f":"J101+J102","v":24895.826000000005},{"$f":"K101+K102","v":0},null,null,null,null,760]
[null,null,null,"27.1.1","прочим потребителям","2180",24895.826000000005,0,0,24895.826000000005,0]
[null,null,null,"27.1.2","населению и приравненным к нему категориям потребителей:","2190",0,{"$f":"H103+H106+H109+H112+H113+H114+H115","v":0},{"$f":"I103+I106+I109+I112+I113+I114+I115","v":0},{"$f":"J103+J106+J109+J112+J113+J114+J115","v":0},{"$f":"K103+K106+K109+K112+K113+K114+K115","v":0}]
[null,null,null,"27.1.2.1","Населению, проживающему в городских населенных пунктах в домах, не оборудованных в установленном порядке стационарными электроплитами и (или) электроотопительными установками и приравненным к нему категориям потребителей:","2200",0,{"$f":"H104+H105","v":0},{"$f":"I104+I105","v":0},{"$f":"J104+J105","v":0},{"$f":"K104+K105","v":0}]
[null,null,null,"27.1.2.1.1","в пределах социальной нормы потребления","2210",0]
[null,null,null,"27.1.2.1.2","сверх социальной нормы потребления","2220",0]
[null,null,null,"27.1.2.2","Населению, проживающему в городских населенных пунктах в домах, оборудованных в установленном порядке стационарными электроплитами и электроотопительными установками и приравненным к нему категориям потребителей:","2230",0,{"$f":"H107+H108","v":0},{"$f":"I107+I108","v":0},{"$f":"J107+J108","v":0},{"$f":"K107+K108","v":0}]
[null,null,null,"27.1.2.2.1","в пределах социальной нормы потребления","2240",0]
[null,null,null,"27.1.2.2.2","сверх социальной нормы потребления","2250",0]
[null,null,null,"27.1.2.3","Населению, проживающему в сельских населенных пунктах и приравненным к нему потребителям:","2260",0,{"$f":"H110+H111","v":0},{"$f":"I110+I111","v":0},{"$f":"J110+J111","v":0},{"$f":"K110+K111","v":0}]
[null,null,null,"27.1.2.3.1","в пределах социальной нормы потребления","2270",0]
[null,null,null,"27.1.2.3.2","сверх социальной нормы потребления","2280",0]
[null,null,null,"27.1.2.4","Садоводческим, огородническим или дачным некоммерческим объединениям граждан","2290",0]
[null,null,null,"27.1.2.5","Религиозным организациям","2300",0]
[null,null,null,"27.1.2.6","Юридическим лицам приобретающим электроэнергию в целях потребления на коммунально-бытовые нужды в населенных пунктах, жилых зонах при воинских частях и в целях потребления осужденными в помещениях для их содержания","2310",0]
[null,null,null,"27.1.2.7","Некоммерческим объединениям граждан (гаражно-строительные, гаражные кооперативы) и хозяйственные постройки физических лиц","2320",0]
[null,null,null,"27.2","по двухставочному тарифу (прочие потребители):","2330",0,{"$f":"H119","v":0},{"$f":"I119","v":0},{"$f":"J119","v":0},{"$f":"K119","v":0},null,null,null,null,770]
[null,null,null,"27.2.1","мощность (МВт), в том числе:","2340",0,null,null,null,null,null,null,null,null,780]
[null,null,null,"27.2.1.1"," опосредованно подключенным к шинам генераторов (МВт)","2350",0]
[null,null,null,"27.2.2","компенсация потерь (тыс. кВт ч)","2360",0,null,null,null,null,null,null,null,null,790]
[null,null,null,"28","Оплачиваемый сетевыми организациями объем оказанных услуг по индивидуальному тарифу:","2370",1129.502,{"$f":"SUM(H121:H122)","v":0},{"$f":"SUM(I121:I122)","v":260.37099999999998},{"$f":"SUM(J121:J122)","v":869.13100000000009},{"$f":"SUM(K121:K122)","v":0}]
[null,null,null,"28.1","по одноставочному тарифу","2380",0]
[null,null,null,"28.2","по двухставочному тарифу:","2390",1129.502,{"$f":"H124","v":0},{"$f":"I124","v":260.37099999999998},{"$f":"J124","v":869.13100000000009},{"$f":"K124","v":0}]
[null,null,null,"28.2.1","мощность (МВт)","2400",0]
[null,null,null,"28.2.2","компенсация потерь (тыс. кВт ч)","2410",1129.502,0,260.37099999999998,869.13100000000009,0]
[null,null,null,"V. Стоимость услуг (тыс. руб.)"]
[null,null,null,"29","Стоимость услуг, оплачиваемая потребителями (конечными потребителями по прямым договорам и ТСО):","2420",0,{"$f":"SUM( H127:H128)","v":0},{"$f":"SUM( I127:I128)","v":0},{"$f":"SUM( J127:J128)","v":0},{"$f":"SUM( K127:K128)","v":0},null,null,null,null,800]
[null,null,null,"29.1","по одноставочному тарифу","2430",0,null,null,null,null,null,null,null,null,810]
[null,null,null,"29.2","по двухставочному тарифу:","2440",0,{"$f":"H129+H131","v":0},{"$f":"I129+I131","v":0},{"$f":"J129+J131","v":0},{"$f":"K129+K131","v":0},null,null,null,null,820]
[null,null,null,"29.2.1","мощность, в том числе:","2450",0,null,null,null,null,null,null,null,null,830]
[null,null,null,"29.2.1.1","опосредованно потребителям с шин генераторов","2460",0]
[null,null,null,"29.2.2","компенсация потерь","2470",0,null,null,null,null,null,null,null,null,840]
[null,null,null,"30","Стоимость услуг, оплачиваемая ГП, ЭСО:","2480",0,{"$f":"SUM( H133+H138)","v":0},{"$f":"SUM( I133+I138)","v":0},{"$f":"SUM( J133+J138)","v":0},{"$f":"SUM( K133+K138)","v":0},null,null,null,null,850]
[null,null,null,"30.1","по одноставочному тарифу","2490",{"$f":"SUM(H133:K133)","v":0},{"$f":"SUM( H134:H135)","v":0},{"$f":"SUM( I134:I135)","v":0},{"$f":"SUM( J134:J135)","v":0},{"$f":"SUM( K134:K135)","v":0},null,null,null,null,860]
[null,null,null,"30.1.1","прочим потребителям","2500",0]
[null,null,null,"30.1.2","населению и приравненным к нему категориям потребителей:","2510",0,{"$f":"H136+H137","v":0},{"$f":"I136+I137","v":0},{"$f":"J136+J137","v":0},{"$f":"K136+K137","v":0}]
[null,null,null,"30.1.2.1","в пределах социальной нормы потребления","2520",0]
[null,null,null,"30.1.2.2","сверх социальной нормы потребления ","2530",0]
[null,null,null,"30.2","по двухставочному тарифу (прочие потребители):","2540",0,{"$f":"H139+H141","v":0},{"$f":"I139+I141","v":0},{"$f":"J139+J141","v":0},{"$f":"K139+K141","v":0},null,null,null,null,870]
[null,null,null,"30.2.1","мощность, в том числе:","2550",0,null,null,null,null,null,null,null,null,880]
[null,null,null,"30.2.1.1","опосредованно потребителям с шин генераторов","2560",0]
[null,null,null,"30.2.2","компенсация потерь","2570",0,null,null,null,null,null,null,null,null,890]
[null,null,null,"31","Стоимость услуг, оплачиваемых сетевыми организациями по индивидуальному тарифу:","2580",11469.162419999999,{"$f":"SUM( H143:H144)","v":0},{"$f":"SUM( I143:I144)","v":0},{"$f":"SUM( J143:J144)","v":11469.162419999999},{"$f":"SUM( K143:K144)","v":0},null,null,null,null,900]
[null,null,null,"31.1","по одноставочному тарифу","2590",0]
[null,null,null,"31.2","по двухставочному тарифу:","2600",11469.162419999999,{"$f":"H145+H146","v":0},{"$f":"I145+I146","v":0},{"$f":"J145+J146","v":11469.162419999999},{"$f":"K145+K146","v":0}]
[null,null,null,"31.2.1","мощность","2610",8636.6029899999994,null,null,8636.6029899999994,null,null,null,null,null,"920"]
[null,null,null,"31.2.2","компенсация потерь","2620",2832.5594299999998,null,null,2832.5594299999998,null,null,null,null,null,"910"]
[]
[null,null,null,null,"Должностное лицо, ответственное за",{"$f":"IF([1]Титульный!G45=\"\",\"\",[1]Титульный!G45)","v":"Начальник  ОУ и СЭ"},null,null,{"$f":"IF([1]Титульный!G44=\"\",\"\",[1]Титульный!G44)","v":"Стрюк Виталий Геннадьевич"}]
[null,null,null,null,"предоставление статистической информации","(должность)",null,null,"(Ф.И.О.)",null,null,null,"(подпись)"]
[null,null,null,null,"(лицо, уполномоченное предоставлять"]
[null,null,null,null,"статистическую информацию от имени",{"$f":"IF([1]Титульный!G46=\"\",\"\",[1]Титульный!G46)","v":"8 (38259) 6-60-30"},null,null,null,"«____» _________20__ год"]
[null,null,null,null,"юридического лица)","(номер контактного телефона)",null,null,null,"(дата составления документа)"]